[Event "Late-Titled-Tuesday-Blitz-April-02-2024"]
[Site "Chess.com"]
[Date "2024.04.02"]
[Round "7"]
[White "Mariia89"]
[Black "ploxoi"]
[Result "0-1"]
[WhiteElo "2276"]
[BlackElo "2462"]
[TimeControl "180+1"]
[EndTime "15:17:23 PDT"]
[Termination "ploxoi won on time"]

1. d4 {[%clk 0:02:59.6]} 1... d5 {[%clk 0:02:59.8]} 2. c4 {[%clk 0:02:59.5]}
2... e6 {[%clk 0:02:58.7]} 3. Nc3 {[%clk 0:02:59.9]} 3... c6 {[%clk 0:02:59.1]}
4. e3 {[%clk 0:02:59.8]} 4... Nf6 {[%clk 0:02:56.6]} 5. Bd3 {[%clk 0:03:00.1]}
5... Nbd7 {[%clk 0:02:57]} 6. Nf3 {[%clk 0:03:00.1]} 6... dxc4 {[%clk
0:02:57.2]} 7. Bxc4 {[%clk 0:03:00.2]} 7... b5 {[%clk 0:02:57.8]} 8. Bd3 {[%clk
0:03:00.7]} 8... Bb7 {[%clk 0:02:58.5]} 9. e4 {[%clk 0:03:01.1]} 9... b4 {[%clk
0:02:56]} 10. Na4 {[%clk 0:02:59.7]} 10... c5 {[%clk 0:02:55.6]} 11. e5 {[%clk
0:02:56.5]} 11... Nd5 {[%clk 0:02:55.3]} 12. Bg5 {[%clk 0:02:49.8]} 12... Qa5
{[%clk 0:02:50.7]} 13. O-O {[%clk 0:02:43.2]} 13... cxd4 {[%clk 0:02:41.6]} 14.
Nxd4 {[%clk 0:02:23.1]} 14... Nxe5 {[%clk 0:02:35.1]} 15. Bb5+ {[%clk
0:02:22.8]} 15... Nd7 {[%clk 0:02:31.8]} 16. Bxd7+ {[%clk 0:01:57.9]} 16... Kxd7
{[%clk 0:02:31.3]} 17. Nf3 {[%clk 0:01:46.3]} 17... Bd6 {[%clk 0:02:26.8]} 18.
Be3 {[%clk 0:01:31.7]} 18... Nxe3 {[%clk 0:02:13.6]} 19. fxe3 {[%clk 0:01:31.6]}
19... f6 {[%clk 0:02:08.1]} 20. Rc1 {[%clk 0:01:12]} 20... Rhd8 {[%clk
0:02:00.5]} 21. Nc5+ {[%clk 0:01:07.8]} 21... Ke7 {[%clk 0:01:36.6]} 22. Nxb7
{[%clk 0:01:05.7]} 22... Bxh2+ {[%clk 0:01:36.4]} 23. Kh1 {[%clk 0:01:05.9]}
23... Rxd1 {[%clk 0:01:36.2]} 24. Nxa5 {[%clk 0:01:05.7]} 24... Rxf1+ {[%clk
0:01:35.9]} 25. Rxf1 {[%clk 0:01:05.1]} 25... Bd6 {[%clk 0:01:33.7]} 26. Rc1
{[%clk 0:00:58.4]} 26... Kd7 {[%clk 0:01:27.5]} 27. Kg1 {[%clk 0:00:48.2]} 27...
g5 {[%clk 0:01:18.3]} 28. Kf2 {[%clk 0:00:47.7]} 28... h5 {[%clk 0:01:15.8]} 29.
Nd4 {[%clk 0:00:47.8]} 29... Be5 {[%clk 0:01:07.5]} 30. b3 {[%clk 0:00:38.6]}
30... h4 {[%clk 0:01:05.9]} 31. Rd1 {[%clk 0:00:30.4]} 31... Ke8 {[%clk
0:01:00.5]} 32. Nxe6 {[%clk 0:00:27.4]} 32... Kf7 {[%clk 0:00:51.8]} 33. Nc5
{[%clk 0:00:20.1]} 33... Rc8 {[%clk 0:00:51.3]} 34. Rd7+ {[%clk 0:00:18.6]}
34... Kg6 {[%clk 0:00:50.8]} 35. Nab7 {[%clk 0:00:17.2]} 35... Bg3+ {[%clk
0:00:47.1]} 36. Kf3 {[%clk 0:00:16.8]} 36... Rc6 {[%clk 0:00:40.6]} 37. e4
{[%clk 0:00:16.5]} 37... f5 {[%clk 0:00:32.8]} 38. Rd5 {[%clk 0:00:12.5]} 38...
g4+ {[%clk 0:00:28.2]} 39. Ke3 {[%clk 0:00:12.3]} 39... f4+ {[%clk 0:00:27.5]}
40. Kd4 {[%clk 0:00:12.4]} 40... Bf2+ {[%clk 0:00:27]} 41. Kc4 {[%clk
0:00:11.6]} 41... h3 {[%clk 0:00:26.8]} 42. gxh3 {[%clk 0:00:11.8]} 42... gxh3
{[%clk 0:00:20.3]} 43. e5 {[%clk 0:00:08.6]} 43... h2 {[%clk 0:00:20.4]} 44. Rd1
{[%clk 0:00:07.7]} 44... Bg1 {[%clk 0:00:20.9]} 45. Rf1 {[%clk 0:00:07.3]} 45...
h1=Q {[%clk 0:00:20.8]} 46. e6 {[%clk 0:00:06.4]} 46... Bxc5 {[%clk 0:00:16.4]}
47. Nxc5 {[%clk 0:00:06]} 47... Qe4+ {[%clk 0:00:16.9]} 48. Kb5 {[%clk 0:00:06]}
48... Qe2+ {[%clk 0:00:16]} 49. Kxc6 {[%clk 0:00:05.2]} 49... Qxf1 {[%clk
0:00:14.6]} 50. e7 {[%clk 0:00:05.4]} 50... Qh1+ {[%clk 0:00:12.2]} 51. Kd7
{[%clk 0:00:05]} 51... Qd5+ {[%clk 0:00:11.6]} 52. Kc7 {[%clk 0:00:03.8]} 52...
Qxc5+ {[%clk 0:00:11.8]} 53. Kd8 {[%clk 0:00:04.1]} 53... Qxe7+ {[%clk
0:00:11.1]} 54. Kxe7 {[%clk 0:00:04.4]} 54... f3 {[%clk 0:00:12]} 55. Kd6 {[%clk
0:00:04.5]} 55... f2 {[%clk 0:00:12.9]} 56. Kc5 {[%clk 0:00:04.7]} 56... f1=Q
{[%clk 0:00:13.6]} 57. Kxb4 {[%clk 0:00:05.3]} 57... Qa6 {[%clk 0:00:13.6]} 58.
a4 {[%clk 0:00:05.4]} 58... Qb6+ {[%clk 0:00:14.2]} 59. Ka3 {[%clk 0:00:05.5]}
59... a5 {[%clk 0:00:14.9]} 60. b4 {[%clk 0:00:05]} 60... Qxb4+ {[%clk
0:00:15.3]} 61. Ka2 {[%clk 0:00:05.9]} 61... Qxa4+ {[%clk 0:00:15.9]} 62. Kb1
{[%clk 0:00:06]} 62... Qb3+ {[%clk 0:00:15.9]} 63. Ka1 {[%clk 0:00:04.2]} 63...
Qe3 {[%clk 0:00:15.3]} 64. Ka2 {[%clk 0:00:04.4]} 64... a4 {[%clk 0:00:14.5]}
65. Ka1 {[%clk 0:00:04.8]} 65... Qf2 {[%clk 0:00:14.6]} 66. Kb1 {[%clk
0:00:04.1]} 66... a3 {[%clk 0:00:15.4]} 67. Kc1 {[%clk 0:00:03.5]} 67... Qb2+
{[%clk 0:00:16.1]} 68. Kd1 {[%clk 0:00:03.6]} 68... a2 {[%clk 0:00:17]} 0-1

[Event "Late-Titled-Tuesday-Blitz-April-02-2024"]
[Site "Chess.com"]
[Date "2024.04.02"]
[Round "7"]
[White "sacrifoice"]
[Black "kleber2007"]
[Result "1-0"]
[WhiteElo "2297"]
[BlackElo "2460"]
[TimeControl "180+1"]
[EndTime "15:17:24 PDT"]
[Termination "sacrifoice won by checkmate"]

1. e4 {[%clk 0:03:00]} 1... c5 {[%clk 0:02:59.7]} 2. Nf3 {[%clk 0:02:58.6]} 2...
g6 {[%clk 0:03:00.1]} 3. c3 {[%clk 0:02:54.4]} 3... Bg7 {[%clk 0:02:59.3]} 4. d4
{[%clk 0:02:54.3]} 4... cxd4 {[%clk 0:02:59.8]} 5. cxd4 {[%clk 0:02:54.2]} 5...
d5 {[%clk 0:03:00.4]} 6. e5 {[%clk 0:02:54.2]} 6... Nc6 {[%clk 0:03:00.3]} 7.
Nc3 {[%clk 0:02:54.3]} 7... f6 {[%clk 0:03:00]} 8. exf6 {[%clk 0:02:53.7]} 8...
Nxf6 {[%clk 0:02:59.8]} 9. Be3 {[%clk 0:02:54.6]} 9... O-O {[%clk 0:02:59.4]}
10. Be2 {[%clk 0:02:30.2]} 10... Bg4 {[%clk 0:02:58.5]} 11. O-O {[%clk
0:02:29.8]} 11... Rc8 {[%clk 0:02:49.4]} 12. Re1 {[%clk 0:02:15.2]} 12... e6
{[%clk 0:02:43.4]} 13. h3 {[%clk 0:02:13.6]} 13... Bxf3 {[%clk 0:02:42.7]} 14.
Bxf3 {[%clk 0:02:14.5]} 14... Qb6 {[%clk 0:02:21.8]} 15. Qd2 {[%clk 0:02:12.6]}
15... Ne8 {[%clk 0:02:08.6]} 16. Rad1 {[%clk 0:02:04.5]} 16... Nd6 {[%clk
0:02:06.9]} 17. b3 {[%clk 0:02:03.1]} 17... Nf5 {[%clk 0:02:05.8]} 18. Bg4
{[%clk 0:01:59]} 18... Ncxd4 {[%clk 0:01:56.1]} 19. Bxf5 {[%clk 0:01:55.4]}
19... Rxc3 {[%clk 0:01:23.6]} 20. Bxe6+ {[%clk 0:01:54.6]} 20... Qxe6 {[%clk
0:01:21.1]} 21. Bxd4 {[%clk 0:01:54.1]} 21... Qc6 {[%clk 0:00:48.7]} 22. Qxc3
{[%clk 0:01:46.5]} 22... Qxc3 {[%clk 0:00:48.4]} 23. Bxc3 {[%clk 0:01:47.4]}
23... Bxc3 {[%clk 0:00:48.9]} 24. Re7 {[%clk 0:01:47.6]} 24... d4 {[%clk
0:00:47.9]} 25. Rxb7 {[%clk 0:01:45.5]} 25... Re8 {[%clk 0:00:47.6]} 26. Kf1
{[%clk 0:01:43.4]} 26... a5 {[%clk 0:00:46.9]} 27. Rd7 {[%clk 0:01:36.3]} 27...
Ra8 {[%clk 0:00:39.8]} 28. R1xd4 {[%clk 0:01:32.8]} 28... Bxd4 {[%clk
0:00:36.7]} 29. Rxd4 {[%clk 0:01:33.7]} 29... Kg7 {[%clk 0:00:37.2]} 30. Ra4
{[%clk 0:01:33.4]} 30... h5 {[%clk 0:00:31.4]} 31. b4 {[%clk 0:01:33.1]} 31...
Rc8 {[%clk 0:00:31.7]} 32. Rxa5 {[%clk 0:01:29.5]} 32... Rc1+ {[%clk 0:00:32.2]}
33. Ke2 {[%clk 0:01:29.3]} 33... Rc2+ {[%clk 0:00:33.1]} 34. Ke3 {[%clk
0:01:29.2]} 34... Rb2 {[%clk 0:00:33]} 35. a3 {[%clk 0:01:28.7]} 35... Kf6
{[%clk 0:00:33.2]} 36. g4 {[%clk 0:01:26.1]} 36... h4 {[%clk 0:00:32.2]} 37. g5+
{[%clk 0:01:21.3]} 37... Ke6 {[%clk 0:00:30.3]} 38. Kf3 {[%clk 0:01:21.4]} 38...
Kf7 {[%clk 0:00:25]} 39. Ra6 {[%clk 0:01:19.7]} 39... Kg7 {[%clk 0:00:23.1]} 40.
Kg4 {[%clk 0:01:19.8]} 40... Rxf2 {[%clk 0:00:22.2]} 41. Kxh4 {[%clk 0:01:20]}
41... Rf3 {[%clk 0:00:19.1]} 42. Kg4 {[%clk 0:01:18.2]} 42... Rc3 {[%clk
0:00:18.7]} 43. Ra7+ {[%clk 0:01:18]} 43... Kg8 {[%clk 0:00:18.1]} 44. b5 {[%clk
0:01:14]} 44... Kh8 {[%clk 0:00:15.4]} 45. b6 {[%clk 0:01:12.6]} 45... Rc4+
{[%clk 0:00:15.3]} 46. Kf3 {[%clk 0:01:11.5]} 46... Rc3+ {[%clk 0:00:15.3]} 47.
Ke4 {[%clk 0:01:11.6]} 47... Rc4+ {[%clk 0:00:15.7]} 48. Ke5 {[%clk 0:01:11.6]}
48... Rc5+ {[%clk 0:00:14.3]} 49. Kf6 {[%clk 0:01:08]} 49... Rc6+ {[%clk
0:00:14]} 50. Kf7 {[%clk 0:01:07.7]} 50... Rxb6 {[%clk 0:00:13.6]} 51. h4 {[%clk
0:01:02.6]} 51... Kh7 {[%clk 0:00:13.2]} 52. a4 {[%clk 0:01:00.3]} 52... Rc6
{[%clk 0:00:13]} 53. a5 {[%clk 0:00:59.4]} 53... Rd6 {[%clk 0:00:13.2]} 54. a6
{[%clk 0:00:53.8]} 54... Rb6 {[%clk 0:00:12.6]} 55. Kf8+ {[%clk 0:00:51.4]}
55... Kh8 {[%clk 0:00:11.9]} 56. Ra8 {[%clk 0:00:45.1]} 56... Rc6 {[%clk
0:00:07.2]} 57. a7 {[%clk 0:00:38]} 57... Ra6 {[%clk 0:00:06.9]} 58. Kf7+ {[%clk
0:00:35.3]} 58... Kh7 {[%clk 0:00:06.9]} 59. Re8 {[%clk 0:00:28.2]} 59... Rxa7+
{[%clk 0:00:06.1]} 60. Re7 {[%clk 0:00:29]} 60... Ra6 {[%clk 0:00:04.6]} 61. Re6
{[%clk 0:00:23.9]} 61... Ra7+ {[%clk 0:00:04.4]} 62. Kf6 {[%clk 0:00:23.6]}
62... Ra4 {[%clk 0:00:02.4]} 63. Re7+ {[%clk 0:00:18.7]} 63... Kg8 {[%clk
0:00:02.8]} 64. Kxg6 {[%clk 0:00:17.4]} 64... Kf8 {[%clk 0:00:03.4]} 65. Rh7
{[%clk 0:00:16.4]} 65... Ra6+ {[%clk 0:00:03.6]} 66. Kh5 {[%clk 0:00:16.6]}
66... Kg8 {[%clk 0:00:04]} 67. g6 {[%clk 0:00:16.5]} 67... Ra5+ {[%clk
0:00:03.4]} 68. Kh6 {[%clk 0:00:16.7]} 68... Ra4 {[%clk 0:00:03.8]} 69. h5
{[%clk 0:00:16.2]} 69... Ra5 {[%clk 0:00:03.4]} 70. Rc7 {[%clk 0:00:16.1]} 70...
Rb5 {[%clk 0:00:03.4]} 71. Rc8# {[%clk 0:00:15.1]} 1-0

[Event "Late-Titled-Tuesday-Blitz-April-02-2024"]
[Site "Chess.com"]
[Date "2024.04.02"]
[Round "7"]
[White "Hirna2005"]
[Black "Quattroporte300"]
[Result "1-0"]
[WhiteElo "2340"]
[BlackElo "2478"]
[TimeControl "180+1"]
[EndTime "15:17:25 PDT"]
[Termination "Hirna2005 won on time"]

1. e4 {[%clk 0:03:00.9]} 1... c5 {[%clk 0:02:59.5]} 2. c3 {[%clk 0:03:00.9]}
2... d5 {[%clk 0:02:58.8]} 3. exd5 {[%clk 0:03:00.6]} 3... Qxd5 {[%clk
0:02:59.7]} 4. Nf3 {[%clk 0:03:00.2]} 4... Nf6 {[%clk 0:02:59.9]} 5. Na3 {[%clk
0:02:59.6]} 5... Nc6 {[%clk 0:02:58]} 6. Bc4 {[%clk 0:02:59.2]} 6... Qd8 {[%clk
0:02:50.3]} 7. O-O {[%clk 0:02:56.3]} 7... e6 {[%clk 0:02:50.8]} 8. Re1 {[%clk
0:02:54.9]} 8... a6 {[%clk 0:02:50.8]} 9. Nc2 {[%clk 0:02:54.1]} 9... b5 {[%clk
0:02:49.3]} 10. Bf1 {[%clk 0:02:54]} 10... Be7 {[%clk 0:02:46.1]} 11. a4 {[%clk
0:02:53.5]} 11... Bb7 {[%clk 0:02:45]} 12. axb5 {[%clk 0:02:52]} 12... axb5
{[%clk 0:02:44.4]} 13. Rxa8 {[%clk 0:02:51.8]} 13... Qxa8 {[%clk 0:02:43.6]} 14.
Bxb5 {[%clk 0:02:51.9]} 14... O-O {[%clk 0:02:44.1]} 15. Bf1 {[%clk 0:02:43.9]}
15... Rd8 {[%clk 0:02:39.9]} 16. Qe2 {[%clk 0:02:41.5]} 16... h6 {[%clk
0:02:36.7]} 17. d4 {[%clk 0:02:41.6]} 17... cxd4 {[%clk 0:02:26.6]} 18. Ncxd4
{[%clk 0:02:41.7]} 18... Nxd4 {[%clk 0:02:21.6]} 19. Nxd4 {[%clk 0:02:41.4]}
19... Bd6 {[%clk 0:02:18.2]} 20. h3 {[%clk 0:02:27.3]} 20... Nd5 {[%clk
0:02:13.8]} 21. Qg4 {[%clk 0:02:17.2]} 21... Kh7 {[%clk 0:02:04.3]} 22. Bd3+
{[%clk 0:02:09]} 22... Kh8 {[%clk 0:01:42.4]} 23. Qh4 {[%clk 0:02:03.2]} 23...
Bf8 {[%clk 0:01:29.6]} 24. Be4 {[%clk 0:01:44.9]} 24... Be7 {[%clk 0:01:24.8]}
25. Qg3 {[%clk 0:01:39.2]} 25... Bd6 {[%clk 0:01:15.7]} 26. Qd3 {[%clk
0:01:35.6]} 26... Nf4 {[%clk 0:01:09.6]} 27. Bxf4 {[%clk 0:01:32]} 27... Bxf4
{[%clk 0:01:09.3]} 28. g3 {[%clk 0:01:25.9]} 28... Bg5 {[%clk 0:00:54.7]} 29.
Bxb7 {[%clk 0:01:21.9]} 29... Qxb7 {[%clk 0:00:54.1]} 30. Qe2 {[%clk 0:01:22.1]}
30... Bf6 {[%clk 0:00:52.2]} 31. Nf3 {[%clk 0:01:20.5]} 31... Qd5 {[%clk
0:00:48.5]} 32. Ne5 {[%clk 0:01:14.8]} 32... Kg8 {[%clk 0:00:44.9]} 33. c4
{[%clk 0:01:10.3]} 33... Qc5 {[%clk 0:00:37.6]} 34. b4 {[%clk 0:01:04.4]} 34...
Qc7 {[%clk 0:00:30.5]} 35. c5 {[%clk 0:01:02.4]} 35... Rd4 {[%clk 0:00:25.4]}
36. b5 {[%clk 0:00:49.1]} 36... Qxc5 {[%clk 0:00:22.2]} 37. Nxf7 {[%clk
0:00:47.3]} 37... Kxf7 {[%clk 0:00:14.6]} 38. Qxe6+ {[%clk 0:00:47.3]} 38... Kg6
{[%clk 0:00:15.3]} 39. b6 {[%clk 0:00:47.3]} 39... Rb4 {[%clk 0:00:08.6]} 40. b7
{[%clk 0:00:30.8]} 40... Rb2 {[%clk 0:00:08.4]} 41. Qe4+ {[%clk 0:00:25.6]}
41... Qf5 {[%clk 0:00:08.8]} 42. Qg2 {[%clk 0:00:20.9]} 42... Bd4 {[%clk
0:00:06.6]} 43. Rf1 {[%clk 0:00:20.3]} 43... Qf6 {[%clk 0:00:03.6]} 44. Qe4+
{[%clk 0:00:19.8]} 44... Qf5 {[%clk 0:00:04.1]} 45. Qxd4 {[%clk 0:00:19.8]}
45... Rxb7 {[%clk 0:00:04]} 46. Qd6+ {[%clk 0:00:18.8]} 46... Kh7 {[%clk
0:00:04.6]} 47. Kg2 {[%clk 0:00:17.1]} 47... Rf7 {[%clk 0:00:05.3]} 48. Qc6
{[%clk 0:00:15.8]} 48... Rf6 {[%clk 0:00:04]} 49. Qb7 {[%clk 0:00:14.5]} 49...
Rf7 {[%clk 0:00:03.9]} 50. Qb2 {[%clk 0:00:13.9]} 50... Qe4+ {[%clk 0:00:03.4]}
51. Kg1 {[%clk 0:00:13.7]} 51... g6 {[%clk 0:00:04]} 52. h4 {[%clk 0:00:13.5]}
52... h5 {[%clk 0:00:03.9]} 53. Rc1 {[%clk 0:00:12.3]} 53... Qd5 {[%clk
0:00:03.3]} 54. Qe2 {[%clk 0:00:11.2]} 54... Qf5 {[%clk 0:00:03.7]} 55. Rc3
{[%clk 0:00:10.1]} 55... Rf6 {[%clk 0:00:03.4]} 56. Kg2 {[%clk 0:00:10]} 56...
Rf7 {[%clk 0:00:03.9]} 57. Rf3 {[%clk 0:00:09.5]} 57... Qxf3+ {[%clk 0:00:03.5]}
58. Qxf3 {[%clk 0:00:09.3]} 58... Rxf3 {[%clk 0:00:04.2]} 59. Kxf3 {[%clk
0:00:09.9]} 59... Kg7 {[%clk 0:00:04.8]} 60. Ke4 {[%clk 0:00:09.2]} 60... Kf7
{[%clk 0:00:04.7]} 61. Ke5 {[%clk 0:00:09.1]} 61... Ke7 {[%clk 0:00:05.4]} 62.
f3 {[%clk 0:00:06.8]} 62... Kf7 {[%clk 0:00:05.7]} 63. Kd6 {[%clk 0:00:05.9]}
63... Kf6 {[%clk 0:00:05.7]} 64. Kd7 {[%clk 0:00:06.1]} 64... Ke5 {[%clk
0:00:03.8]} 65. Ke7 {[%clk 0:00:05.7]} 65... Kf5 {[%clk 0:00:03.4]} 66. Kf7
{[%clk 0:00:04.3]} 66... g5 {[%clk 0:00:04]} 67. hxg5 {[%clk 0:00:04.3]} 67...
Kxg5 {[%clk 0:00:04.6]} 68. Ke6 {[%clk 0:00:03.9]} 68... Kg6 {[%clk 0:00:02.2]}
69. f4 {[%clk 0:00:03.9]} 69... Kg7 {[%clk 0:00:02.5]} 70. Kf5 {[%clk
0:00:03.5]} 70... Kf7 {[%clk 0:00:02.1]} 71. Kg5 {[%clk 0:00:03.8]} 1-0

[Event "Late-Titled-Tuesday-Blitz-April-02-2024"]
[Site "Chess.com"]
[Date "2024.04.02"]
[Round "7"]
[White "stollenmonster"]
[Black "dropstoneDP"]
[Result "0-1"]
[WhiteElo "2861"]
[BlackElo "2991"]
[TimeControl "180+1"]
[EndTime "15:17:32 PDT"]
[Termination "dropstoneDP won by resignation"]

1. e4 {[%clk 0:03:00.9]} 1... e5 {[%clk 0:03:00.2]} 2. Nc3 {[%clk 0:03:01]} 2...
Nf6 {[%clk 0:03:00.7]} 3. g3 {[%clk 0:03:01.6]} 3... Bc5 {[%clk 0:02:59.3]} 4.
Bg2 {[%clk 0:03:02]} 4... c6 {[%clk 0:02:59.8]} 5. Nge2 {[%clk 0:03:02.2]} 5...
d5 {[%clk 0:02:59.8]} 6. exd5 {[%clk 0:03:03.1]} 6... cxd5 {[%clk 0:03:00.6]} 7.
d4 {[%clk 0:03:03.8]} 7... exd4 {[%clk 0:03:00.9]} 8. Nxd4 {[%clk 0:03:04.7]}
8... O-O {[%clk 0:03:00.8]} 9. O-O {[%clk 0:03:04.6]} 9... Bg4 {[%clk
0:03:01.1]} 10. Qd3 {[%clk 0:03:04.6]} 10... Bxd4 {[%clk 0:03:01.6]} 11. Qxd4
{[%clk 0:03:04.7]} 11... Nc6 {[%clk 0:03:02.2]} 12. Qc5 {[%clk 0:03:05.2]} 12...
d4 {[%clk 0:03:02.9]} 13. Ne4 {[%clk 0:03:05.5]} 13... Nxe4 {[%clk 0:02:56.9]}
14. Bxe4 {[%clk 0:03:06.4]} 14... Re8 {[%clk 0:02:37.1]} 15. Bg2 {[%clk
0:02:28.5]} 15... Qd7 {[%clk 0:02:29.9]} 16. Bf4 {[%clk 0:02:25.5]} 16... Bh3
{[%clk 0:02:29.3]} 17. Bxh3 {[%clk 0:02:24.6]} 17... Qxh3 {[%clk 0:02:29.4]} 18.
Rfe1 {[%clk 0:02:25.1]} 18... h6 {[%clk 0:02:21.6]} 19. Qd5 {[%clk 0:02:19.6]}
19... Rxe1+ {[%clk 0:02:17.3]} 20. Rxe1 {[%clk 0:02:18.9]} 20... Rd8 {[%clk
0:02:18]} 21. Qb5 {[%clk 0:02:10.3]} 21... Qd7 {[%clk 0:02:13.2]} 22. Bd2 {[%clk
0:02:10.2]} 22... d3 {[%clk 0:02:11.7]} 23. cxd3 {[%clk 0:02:05.6]} 23... Qxd3
{[%clk 0:01:47.6]} 24. Re8+ {[%clk 0:02:04.8]} 24... Kh7 {[%clk 0:01:47.5]} 25.
Qxd3+ {[%clk 0:02:05.3]} 25... Rxd3 {[%clk 0:01:47.1]} 26. Bc3 {[%clk 0:02:06]}
26... Rd7 {[%clk 0:01:44.1]} 27. h4 {[%clk 0:02:00.3]} 27... h5 {[%clk
0:01:43.3]} 28. Kg2 {[%clk 0:01:59]} 28... Kg6 {[%clk 0:01:42.3]} 29. Kf3 {[%clk
0:01:56.8]} 29... f6 {[%clk 0:01:41.1]} 30. Ke4 {[%clk 0:01:51.3]} 30... a6
{[%clk 0:01:37.2]} 31. f3 {[%clk 0:01:34.4]} 31... Rd1 {[%clk 0:01:12.9]} 32. g4
{[%clk 0:01:21.4]} 32... Rh1 {[%clk 0:01:06]} 33. gxh5+ {[%clk 0:01:21.2]} 33...
Kf7 {[%clk 0:01:05.8]} 34. Rh8 {[%clk 0:01:09.8]} 34... Rxh4+ {[%clk 0:01:05.8]}
35. Kd5 {[%clk 0:01:03.1]} 35... Nb4+ {[%clk 0:00:55.2]} 36. Kd6 {[%clk
0:00:40.7]} 36... Nxa2 {[%clk 0:00:53]} 37. Ba5 {[%clk 0:00:40.5]} 37... Nb4
{[%clk 0:00:25.1]} 38. Bb6 {[%clk 0:00:32.5]} 38... Nd3 {[%clk 0:00:19.1]} 39.
b3 {[%clk 0:00:26.6]} 39... Rb4 {[%clk 0:00:18]} 40. Bd8 {[%clk 0:00:20]} 40...
Rd4+ {[%clk 0:00:12]} 41. Kc7 {[%clk 0:00:19.1]} 41... Nc5 {[%clk 0:00:12.6]}
42. Kc8 {[%clk 0:00:15.2]} 42... Nxb3 {[%clk 0:00:09.6]} 43. h6 {[%clk
0:00:15.5]} 43... gxh6 {[%clk 0:00:09.1]} 44. Rxh6 {[%clk 0:00:15.8]} 44... Rd6
{[%clk 0:00:06.7]} 45. Bc7 {[%clk 0:00:14]} 45... Re6 {[%clk 0:00:07.2]} 46.
Kxb7 {[%clk 0:00:13.8]} 46... Nc5+ {[%clk 0:00:07.7]} 47. Kc8 {[%clk 0:00:14.2]}
47... Rc6 {[%clk 0:00:07.6]} 48. Kb8 {[%clk 0:00:11.4]} 48... Ne6 {[%clk
0:00:07.6]} 49. Ba5 {[%clk 0:00:10.8]} 49... Rc5 {[%clk 0:00:07.1]} 50. Be1
{[%clk 0:00:10.2]} 50... Rf5 {[%clk 0:00:07.3]} 51. Rh7+ {[%clk 0:00:09.9]}
51... Kg6 {[%clk 0:00:07.4]} 52. Ra7 {[%clk 0:00:10.8]} 52... Rxf3 {[%clk
0:00:03.2]} 53. Rxa6 {[%clk 0:00:11]} 53... Nc5 {[%clk 0:00:03.8]} 54. Rc6
{[%clk 0:00:10.5]} 54... Ne4 {[%clk 0:00:03.6]} 55. Ba5 {[%clk 0:00:09.5]} 55...
Kh5 {[%clk 0:00:03.4]} 56. Bd8 {[%clk 0:00:09.5]} 56... f5 {[%clk 0:00:03.8]}
57. Bc7 {[%clk 0:00:10]} 57... Rd3 {[%clk 0:00:03.7]} 58. Kc8 {[%clk 0:00:09.7]}
58... Kg4 {[%clk 0:00:04.1]} 59. Rg6+ {[%clk 0:00:09.5]} 59... Kf3 {[%clk
0:00:04.2]} 60. Rg8 {[%clk 0:00:09.5]} 60... Rd5 {[%clk 0:00:04.7]} 61. Rf8
{[%clk 0:00:09.4]} 61... Ng5 {[%clk 0:00:04.9]} 62. Kb7 {[%clk 0:00:09.2]} 62...
Ne6 {[%clk 0:00:05]} 63. Kc6 {[%clk 0:00:07.7]} 63... Nxc7 {[%clk 0:00:03]} 64.
Rf7 {[%clk 0:00:08.3]} 64... f4 {[%clk 0:00:03]} 65. Rxc7 {[%clk 0:00:07.3]}
65... Rd1 {[%clk 0:00:03.5]} 66. Rf7 {[%clk 0:00:07.6]} 66... Ke3 {[%clk
0:00:03.8]} 67. Kc5 {[%clk 0:00:07.4]} 67... f3 {[%clk 0:00:03.8]} 68. Re7+
{[%clk 0:00:07.7]} 68... Kf2 {[%clk 0:00:04.4]} 69. Kc4 {[%clk 0:00:08.2]} 69...
Kg2 {[%clk 0:00:04.5]} 70. Rg7+ {[%clk 0:00:08.3]} 70... Kf1 {[%clk 0:00:04.7]}
71. Kc3 {[%clk 0:00:09.2]} 71... f2 {[%clk 0:00:05.1]} 72. Kc2 {[%clk
0:00:09.9]} 72... Rd5 {[%clk 0:00:05.6]} 73. Rf7 {[%clk 0:00:10.2]} 73... Ke2
{[%clk 0:00:05.9]} 74. Re7+ {[%clk 0:00:10.4]} 74... Kf3 {[%clk 0:00:06.6]} 75.
Rf7+ {[%clk 0:00:10.9]} 75... Ke3 {[%clk 0:00:07.2]} 0-1